Cogmind - Beta 17 @@@ ROGUE MODE // 2026.08.08 @ 13:49:21 Player: MrFartsburg Result: Destroyed by YA-XF5(R) with Subdweller Machine Gun Performance ------------- Evolutions (0) 0 Regions Visited (3) 600 Robots Destroyed (19) 95 Value Destroyed (399) 399 Prototype IDs (0) 0 Alien Tech Used (0) 0 Bonus (-40) -40 TOTAL SCORE: 1054 Bonus ------- Friendly Fire -40 Cogmind --------- Core Integrity 0/250 Matter 204/300 Energy 160/160 System Corruption 0% Temperature Cool (0) Movement Core (850) Ox16 Location -10/Subcaves Parts ------- > --- POWER (1) -------- Light Nuclear Core > --- PROPULSION (2) --- (None) > --- UTILITY (2) ------ Improved Heat Sink High-capacity Storage Unit > --- WEAPON (2) ------- Rocket Launcher > --- INVENTORY (20) --- Ion Engine Light Ion Engine Assault Rifle Light Assault Rifle Peak State ------------ > --- POWER ------------ Ion Engine > --- PROPULSION ------- Light Treads Light Treads > --- UTILITY ---------- Improved Heat Sink High-capacity Storage Unit > --- WEAPON ----------- Particle Gun Rocket Launcher > --- INVENTORY -------- Light Ion Engine Light Nuclear Core Assault Rifle Light Assault Rifle Light Assault Rifle [Rating: 11] Favorites ----------- Power Ion Engine Engine Ion Engine Propulsion Light Treads Treads Light Treads Wheel Wheel Utility High-capacity Storage Unit Device Improved Heat Sink Storage High-capacity Storage Unit Protection Medium Armor Plating Weapon Light Assault Rifle Energy Gun Particle Gun Ballistic Gun Light Assault Rifle Launcher Rocket Launcher Build | -11 -10 -10 -10 ------- Run | Yrd Mat Min Sub Slots Evolved . | . . . . Power . | . . . . Propulsion . | . . . . Utility . | . . . . Weapon . | . . . . Parts Attached 20 | 6 8 2 4 Power 3 | 1 1 . 1 Engine 2 | 1 1 . . Core 1 | . . . 1 Reactor . | . . . . Propulsion 5 | 2 3 . . Treads 2 | . 2 . . Leg . | . . . . Wheel 3 | 2 1 . . Hover . | . . . . Flight . | . . . . Utility 4 | 1 2 1 . Device 1 | . . 1 . Storage 2 | 1 1 . . Processor . | . . . . Hackware . | . . . . Protection 1 | . 1 . . Artifact . | . . . . Weapon 8 | 2 2 1 3 Energy Gun 2 | . 1 . 1 Energy Cannon . | . . . . Ballistic Gun 4 | 2 . 1 1 Ballistic Cannon . | . . . . Launcher 2 | . 1 . 1 Special Weapon . | . . . . Impact Weapon . | . . . . Slashing Weapon . | . . . . Piercing Weapon . | . . . . Special Melee Weapon . | . . . . Unidentified Prototypes . | . . . . Parts Lost 10 | . 6 . 4 Power 1 | . 1 . . Propulsion 4 | . 2 . 2 Utility 1 | . 1 . . Weapon 4 | . 2 . 2 Highest Loss Streak 6 | . 6 . 4 To Critical Strikes . | . . . . Average Backups 3 | 1 3 2 5 Power . | . . . 2 Propulsion . | 1 1 . . Utility . | . . . . Weapon 1 | . . 2 3 Tool/Special . | . . . . Unused Backups 1 | . . . 1 Power 1 | . . . 1 Propulsion . | . . . . Utility . | . . . . Weapon . | . . . . Tool/Special . | . . . . Average Slot Usage (%) 89 | . 88 88 98 Engine 14 | . 14 14 14 Treads 25 | . 14 28 27 Wheel 2 | . 13 . . Device 4 | . . 3 14 Storage 14 | . 16 14 14 Ballistic Gun 26 | . 26 28 19 Peak Build Rating 11 | 6 9 10 11 Average Rating 7 | 4 6 6 9 On Entrance 5 | . 6 6 9 Avg Prop Armor Cover (%) . | . . . . Naked Turns . | . . . . Heaviest Build 54 | 11 54 49 51 Greatest Support 40 | 20 40 40 40 Greatest Overweight (x) 2 | . 2 1 2 Average Overweight (x) . | . . 1 1 Largest Inventory Capacity 20 | 8 20 20 20 Average Capacity 19 | 7 18 20 20 Most Carried 7 | 4 7 6 5 Average Carried 3 | 2 3 2 4 Final Capacity 20 | 8 20 20 20 Final Carried 5 | 4 1 5 4 Class Distribution -------------------- 100% | Mutant Dominant Class ---------------- Mutant | -10/Materials Mutant | -10/Mines Mutant | -10/Subcaves Resources | -11 -10 -10 -10 ----------- Run | Yrd Mat Min Sub Matter Collected 459 | 223 . 187 49 Remotely . | . . . . Salvage Created 347 | . 124 171 52 Parts 32 | . 16 16 . Haulers Intercepted . | . . . . Recyclers Shooed 1 | . . 1 . Parts Field Recycled . | . . . . Retrieved Matter . | . . . . Parts Self-Destructed . | . . . . Prevented . | . . . . Parts Restored . | . . . . Kills | -11 -10 -10 -10 ------- Run | Yrd Mat Min Sub Combat Hostiles Destroyed 17 | . 9 7 1 Guns 9 | . 1 7 1 AOE 8 | . 8 . . Classes Destroyed 6 | . 4 . 2 Builder 1 | . 1 . . Recycler 1 | . 1 . . Swarmer 11 | . 6 5 . Grunt 5 | . 3 2 . Sentry 1 | . . . 1 Scientist 1 | . . . 1 Best Kill Streak 11 | . 11 3 1 Combat Bots Only 9 | . 9 3 1 Max Kills in Single Turn 3 | . 3 1 1 Gunslinging . | . . . . Exploded 2 | . 2 . . Melee . | . . . . Uniques/NPCs Destroyed . | . . . . Combat | -11 -10 -10 -10 -------- Run | Yrd Mat Min Sub Hostile Shots Fired 90 | . 12 29 49 Missed 30 | . 3 9 18 Hits 60 | . 9 20 31 Projectile 60 | . 9 20 31 Critical Strikes 1 | . . 1 . Damage Taken 1345 | . 498 219 628 Core 267 | . 99 27 141 Absorbed by Shields . | . . . . Core Remaining (%) 100 | 100 . . . Volleys Fired 24 | . 4 14 6 Largest 2 | . 2 2 2 Hottest 73 | . 73 40 53 Shots Fired 47 | . 7 28 12 Gun 38 | . 3 28 7 Cannon . | . . . . Launcher 9 | . 4 . 5 Special . | . . . . Kinetic 35 | . . 28 7 Thermal . | . . . . Explosive 9 | . 4 . 5 Electromagnetic 3 | . 3 . . Robot Hit Streak 11 | . 1 5 11 Robot Miss Streak 2 | . 2 2 . Penetration Max . | . . . . Secondary Targets 2 | . . 2 . Max Gunslinging Chain 1 | . . 1 . Shots Hit Robots 29 | . 3 19 7 Core Hits 30 | . 13 13 4 Critical Kills . | . . . . Critical Parts Destroyed . | . . . . Critical Strikes . | . . . . Melee Attacks . | . . . . Impact . | . . . . Slashing . | . . . . Piercing . | . . . . Sneak Attacks . | . . . . Combat Hostiles . | . . . . Follow-up Attacks . | . . . . Damage Inflicted 1218 | . 898 220 100 Guns 273 | . 23 202 48 Cannons . | . . . . Explosions 927 | . 875 . 52 Melee . | . . . . Ramming 18 | . . 18 . Kinetic 250 | . . 202 48 Thermal 255 | . 255 . . Explosive 672 | . 620 . 52 Electromagnetic 23 | . 23 . . Impact . | . . . . Slashing . | . . . . Piercing . | . . . . Highest Corruption . | . . . . Average Corruption . | . . . . Corruption Purged . | . . . . Corruption Blocked . | . . . . Overload Shots . | . . . . Overflow Damage 184 | . 184 . . Projectiles . | . . . . Explosions 184 | . 184 . . Melee . | . . . . Knockbacks . | . . . . Impact . | . . . . Kinetic . | . . . . Secondary . | . . . . Self-Inflicted Damage 444 | . 420 . 24 Shots 8 | . 7 . 1 Rammed 2 | . . 2 . Targets Rammed 2 | . . 2 . Kicked . | . . . . Crushed . | . . . . Highest Temperature 69 | . 69 9 . Average Temperature 27 | . 41 7 . Received Heat Transfer 210 | . 18 78 114 Siege Activations . | . . . . Martial Activations . | . . . . Shielding Activations . | . . . . Robots Disrupted . | . . . . Combat Hostiles . | . . . . Robots Corrupted . | . . . . Combat Hostiles . | . . . . Parts Fried . | . . . . Impact Corruptions . | . . . . Robots Melted . | . . . . Combat Hostiles . | . . . . Parts Melted . | . . . . Heat Transferred 150 | . 150 . . Parts Sabotaged . | . . . . Parts Stolen . | . . . . Parts Stripped . | . . . . Power Chain Reactions . | . . . . Alert | -11 -10 -10 -10 ------- Run | Yrd Mat Min Sub Maximum Alert Level 1 | . 1 . . Low Security (%) 87 | 100 44 100 . Level 1 12 | . 55 . . Level 2 . | . . . . Level 3 . | . . . . Level 4 . | . . . . Level 5 . | . . . . High Security . | . . . . Max Security . | . . . . Peak Influence 303 | . 303 86 . Initial 86 | . . 86 . Average 46 | . 146 17 . Influence Increases 553 | . 373 160 20 Destroy 0b10 Robot/C 340 | . 180 140 20 Destroy 0b10 Robot/NC 10 | . 10 . . Destroy Leader 50 | . 30 20 . Successful Hack 10 | . 10 . . Disable Machine 75 | . 75 . . Destroy Structure 68 | . 68 . . Influence Decreases 553 | . 150 337 66 Entered New Map 162 | . . 137 25 Time Decay 331 | . 90 200 41 Lost Part 60 | . 60 . . Squads Dispatched 2 | . 2 . . Investigation 2 | . 2 . . Extermination . | . . . . Reinforcement . | . . . . Assault . | . . . . Garrison . | . . . . Intercept . | . . . . Searches Triggered . | . . . . Construction Impeded . | . . . . Haulers Reinforced . | . . . . Active Scanning Responses . | . . . . Cargo Convoy Interrupts . | . . . . Stealth | -11 -10 -10 -10 --------- Run | Yrd Mat Min Sub Distress Signals 1 | . 1 . . Communications Jammed . | . . . . Distress Signals . | . . . . Times Spotted 22 | . 10 8 4 Peak Tracking Total 9 | . 9 3 3 Tactical Retreats . | . . . . Traps | -11 -10 -10 -10 ------- Run | Yrd Mat Min Sub Traps Triggered . | . . . . Indirectly . | . . . . Trap Hack Attempts . | . . . . Triggered . | . . . . Disarmed . | . . . . Reprogrammed . | . . . . Reused . | . . . . Traps Extracted . | . . . . Installed . | . . . . Triggered . | . . . . Machines | -11 -10 -10 -10 ---------- Run | Yrd Mat Min Sub Machines Disabled 5 | . 5 . . Max in Single Turn 3 | . 3 . . Machines Repaired . | . . . . Machines Dismantled . | . . . . Machines Sabotaged . | . . . . Overloaded Fab Kills . | . . . . Hacking | -11 -10 -10 -10 --------- Run | Yrd Mat Min Sub Machines Accessed 3 | . 3 . . Terminals 2 | . 2 . . Fabricators . | . . . . Repair Stations . | . . . . Recycling Units 1 | . 1 . . Scanalyzers . | . . . . Garrison Access . | . . . . Total Hacks 11 | . 11 . . Successful 5 | . 5 . . Failed 6 | . 6 . . Catastrophic . | . . . . Database Lockouts . | . . . . Manual . | . . . . Terminals 8 | . 8 . . Fabricators . | . . . . Repair Stations . | . . . . Recycling Units 3 | . 3 . . Scanalyzers . | . . . . Garrison Access . | . . . . Terminal Hacks 4 | . 4 . . Record 3 | . 3 . . Dispatch Records 1 | . 1 . . Fabricator Hacks . | . . . . Repair Station Hacks . | . . . . Recycling Unit Hacks 1 | . 1 . . Recycle Component 1 | . 1 . . Scanalyzer . | . . . . Garrison Access Hacks . | . . . . Unauthorized Hacks . | . . . . Terminals . | . . . . Fabricators . | . . . . Repair Stations . | . . . . Recycling Units . | . . . . Scanalyzers . | . . . . Garrison Access . | . . . . Data Cores Recovered . | . . . . Used . | . . . . Hacking Detections 2 | . 2 . . Full Trace Events 2 | . 2 . . Feedback Events . | . . . . Feedback Blocked . | . . . . Robot Schematics Acquired . | . . . . Robots Built . | . . . . Authchips . | . . . . Time . | . . . . Total Robot Build Rating . | . . . . Part Schematics Acquired . | . . . . Parts Built . | . . . . Authchips . | . . . . Time . | . . . . Total Part Build Rating . | . . . . Part Studies Acquired . | . . . . Parts Repaired . | . . . . Time . | . . . . Parts Recycled 1 | . 1 . . Recycled Matter . | . . . . Retrieved Matter . | . . . . Retrieved Components . | . . . . Parts Scanalyzed . | . . . . Part Schematics Acquired . | . . . . Parts Damaged . | . . . . Bothacking | -11 -10 -10 -10 ------------ Run | Yrd Mat Min Sub Used RIF Installer . | . . . . Robots Hacked . | . . . . Non-combat . | . . . . Combat . | . . . . Robot Hacks Applied . | . . . . Relay Couplers Released . | . . . . Fabnet Peak Effective % . | . . . . Robots Rewired . | . . . . Allies Hacked . | . . . . Hacks Repelled . | . . . . Allies | -11 -10 -10 -10 -------- Run | Yrd Mat Min Sub Total Allies . | . . . . Largest Group . | . . . . Highest-Rated Group . | . . . . Highest-Rated Ally . | . . . . Total Orders . | . . . . Ally Attacks . | . . . . Total Damage . | . . . . Kills . | . . . . Allies Corrupted . | . . . . Allies Melted . | . . . . Intel | -11 -10 -10 -10 ------- Run | Yrd Mat Min Sub Active Infowar (turns) . | . . . . Robot Analysis Total . | . . . . Derelict Logs Recovered 2 | . . 2 . Drone Launches . | . . . . Drone Recoveries . | . . . . Exploration | -11 -10 -10 -10 ------------- Run | Yrd Mat Min Sub Turns Passed 1651 | 62 336 1048 205 Spaces Moved 762 | 64 208 415 75 Core 5 | 5 . . . Treads 564 | . 74 415 75 Legs . | . . . . Wheels 193 | 59 134 . . Hover . | . . . . Flight . | . . . . Fastest Speed 50 | 50 80 240 240 Average Speed 201 | 77 147 240 241 Slowest Speed 320 | 80 240 240 320 Overloaded Moves . | . . . . Propulsion Burnouts . | . . . . Robots Hopped . | . . . . Potential Cave-ins . | . . . . Cave-ins Triggered . | . . . . Exploration Rate (%) 28 | 3 33 70 9 Regions Visited 3 Branch Regions 2 Pre-discovered Areas 1 | . . 1 . Known Exits Taken . | . . . . Unknown Exits Taken 3 | 1 1 1 . Scrap Searched . | . . . . Spaces Dug . | . . . . Terrain Destroyed 123 | . 76 . 47 Melee . | . . . . Projectile . | . . . . AOE 123 | . 76 . 47 Terrain Rammed . | . . . . Walls Destroyed . | . . . . Machines Disabled . | . . . . Actions | -11 -10 -10 -10 --------- Run | Yrd Mat Min Sub Total 829 | 73 229 440 87 Wait 3 | . 1 2 . Move 759 | 63 207 414 75 Hop . | . . . . Pick Up 14 | 4 5 5 . Fast Attach 7 | 6 . 1 . Attach 9 | . 7 1 1 Detach . | . . . . Swap 9 | . 4 . 5 Drop 2 | . 1 1 . Fire 24 | . 4 14 6 Melee . | . . . . Ram . | . . . . Kick . | . . . . Crush 2 | . . 2 . Escape Stasis . | . . . . Rewire . | . . . . Trap . | . . . . Miscellaneous . | . . . . Route ------- -11/Scrapyard -10/Materials -10/Mines -10/Subcaves History --------- Turn | Location | Event 20 | -11/Scrapyard | Discovered new exit (range 16) 63 | -11/Scrapyard | Entered Materials 231 | -10/Materials | Discovered new exit (range 16) 235 | -10/Materials | Destroyed 9 combat bots 245 | -10/Materials | Lost 6 parts (1p2n1u2w) 317 | -10/Materials | Build established: Mutant 399 | -10/Materials | Entered Mines 669 | -10/Mines | Learned location of Storage (-8) 816 | -10/Mines | Learned 2 Materials zone layouts 1160 | -10/Mines | Learned Materials terminal intel 1178 | -10/Mines | Core integrity fell below 50% 1435 | -10/Mines | Discovered new exit (range 6) 1447 | -10/Mines | Entered Subcaves 1448 | -10/Subcaves | Approached by a straggling Scientist 1627 | -10/Subcaves | Core integrity fell below 20% 1652 | -10/Subcaves | Destroyed by YA-XF5(R) with Subdweller Machine Gun Last Messages --------------- GOAL=ESCAPE YQ-WZF(c): "Thank the algorithms! I was beginning to lose hope I'd never make it past all the Subs lurking out here." YQ-WZF(c): "Hey, let me tag along and I can get us both out of this nasty situation. At least I think I can... The group I got separated from was talking about a shortcut back to the UFD." YQ-WZF(c): "I think it's somewhere west of here" YQ-WZF(c) destroyed. Y-45 Defender destroyed. Acquired 8 matter. The unstable cave ceiling collapses. Acquired 41 matter. The unstable cave ceiling collapses. Lgt. Treads destroyed. Lgt. Assault Rifle destroyed. Particle Gun destroyed. Lgt. Treads destroyed. Map ----- +----------------------------------------------------+ | ?????????????????????????????????????????????????? | | ?????????????????????????????????????????????????? | | ?????????????????????????????????????????????????? | | ?????????????????????????????????????????????????? | | ?????????????????????????????????????????????????? | | ?????????????????????????????????????????????????? | | ?????????????????????????????????????????????????? | | ?????????????????????????????????????????????????? | | ?????????????????????????????????????????????????? | | ?????????????????????????????????????? #???#????? | | ???????????????????????????????????# ??# ????? | | ?????????????????????????????????? ## ## ????? | | ?????????????????????????????????? ## ???? | | ?????????????????????????????????# ?# ???? | | ?????????????????????????####????# ### #???? | | ?????????????????????????# ##?## ### #??## | | ?????????????????????????# ### ??# | | ?????????????????????????# ## ? ??# | | ?????????????????????????# #???# #### | | ????????????????????????## #???# ### | | ????????????????????????# ## #???????# # ## | | ????????????????????????# R #??????## # | | ??????????? ## ???#### R ####???# | | ?????????? ## ## R# ##?## # # | | ?????????????? # ## ### ## # | | ????????????????????# @ ## #### # | | ????????????????????## # ##?# # # | | ?????????????????????### #### ### ## | | ???????????????????????## ##?## ### | | ????????????????????????## ## ### #???## #?# | | ?????????????????????????#######?## ?###?# | | ??????????????????????????????????## #???# | | ???????????????????????????????????# #??? | | ???????????????????????????????????# #?? | | ???????????????????????????????????# ###### ##?? | | ???????????????????????????????????# ##?????###??? | | ???????????????????????????????????###???????????? | | ?????????????????????????????????????????????????? | | ?????????????????????????????????????????????????? | | ?????????????????????????????????????????????????? | | ?????????????????????????????????????????????????? | | ?????????????????????????????????????????????????? | | ?????????????????????????????????????????????????? | | ?????????????????????????????????????????????????? | | ?????????????????????????????????????????????????? | | ?????????????????????????????????????????????????? | | ?????????????????????????????????????????????????? | | ?????????????????????????????????????????????????? | | ?????????????????????????????????????????????????? | | ?????????????????????????????????????????????????? | +----------------------------------------------------+ Best States ------------- Heat Dissipation 39 Energy Generation 10 Energy Capacity 250 Matter Stores 263 Matter Capacity 300 Sight Range 16 Terrain Scan Density 10 Armor Coverage 225 Evasion (%) 44 Recoil Reduction 2 Item Schematics ----------------- None Robot Schematics ------------------ None Fabricated ------------ Nothing Repaired ---------- Nothing Studied --------- None Alien Tech Used ----------------- None Achievements -------------- None Challenges ------------ None Game ------ Seed StormContainmentTube Manual? 0 Play Time 00:16:31 Cumulative 28.5 hours Start 2026.08.08 @ 13:34:22 End 2026.08.08 @ 13:49:21 Sessions 1 Manual Loads 0 Difficulty Rogue Special Mode None Game No. 53 Rogue 53 Adventurer 0 Explorer 0 Win Type - Total 0 Types 0/0/0/0/0/0/0/0/0/0 Lore% 13 Gallery% 21 Achievement% 15 Wizard Run 0 Options --------- Layout 1 ASCII 0 Keyboard 0 Movement Numpad Keybinds 0 Fullscreen 1 Font 32/SmallcapsGlow Map View 50x35 Zoom Use 0% Tactical HUD 0 Map Filters NONE Filters NONE Steam 1 RUN: bb563b7a-55ce-4276-9bb6-f419bb71bd56